[Event "Titled Tuesday Blitz February 14 Late 2023"]
[White "Brilej, Jaka"]
[Black "Martinez Ramirez, Lennis"]
[WhiteFideId "14618818"]
[BlackFideId "3509079"]
[WhiteElo "2321"]
[BlackElo "2426"]
[Result "1/2-1/2"]
[Round "08"]
[TimeControl "180+2"]
[Date "2023.02.14"]
[WhiteClock "0:00:13"]
[BlackClock "0:00:04"]

1. d4 {[%clk 0:03:00]}  d5 {[%clk 0:02:59]} 2. c4 {[%clk 0:03:00]}  dxc4 {[%clk 0:03:00]} 3. e4 {[%clk 0:03:00]}  Nf6 {[%clk 0:03:01]} 4. e5 {[%clk 0:02:59]}  Nd5 {[%clk 0:03:01]} 5. Bxc4 {[%clk 0:02:59]}  Nb6 {[%clk 0:02:58]} 6. Bd3 {[%clk 0:02:58]}  Nc6 {[%clk 0:02:46]} 7. Nf3 {[%clk 0:02:57]}  Bg4 {[%clk 0:02:45]} 8. Be3 {[%clk 0:02:56]}  e6 {[%clk 0:02:45]} 9. Nbd2 {[%clk 0:02:55]}  Qd7 {[%clk 0:02:43]} 10. h3 {[%clk 0:02:55]}  Bh5 {[%clk 0:02:41]} 11. O-O {[%clk 0:02:30]}  Nb4 {[%clk 0:02:37]} 12. Be4 {[%clk 0:02:29]}  N4d5 {[%clk 0:02:37]} 13. Rc1 {[%clk 0:02:27]}  O-O-O {[%clk 0:02:32]} 14. Nc4 {[%clk 0:02:25]}  Nxc4 {[%clk 0:02:28]} 15. Rxc4 {[%clk 0:02:26]}  Kb8 {[%clk 0:02:28]} 16. Qc1 {[%clk 0:02:15]}  f6 {[%clk 0:02:28]} 17. a3 {[%clk 0:02:12]}  Bxf3 {[%clk 0:02:23]} 18. Bxf3 {[%clk 0:02:11]}  fxe5 {[%clk 0:02:23]} 19. Bg5 {[%clk 0:02:03]}  Be7 {[%clk 0:02:23]} 20. dxe5 {[%clk 0:01:59]}  Bxg5 {[%clk 0:02:20]} 21. Qxg5 {[%clk 0:02:00]}  Rhf8 {[%clk 0:02:13]} 22. Rfc1 {[%clk 0:01:57]}  c6 {[%clk 0:02:10]} 23. Bxd5 {[%clk 0:01:34]}  exd5 {[%clk 0:02:05]} 24. Rf4 {[%clk 0:01:34]}  h6 {[%clk 0:01:45]} 25. Qg3 {[%clk 0:01:32]}  Rxf4 {[%clk 0:01:41]} 26. Qxf4 {[%clk 0:01:33]}  Qe6 {[%clk 0:01:40]} 27. Qd4 {[%clk 0:01:29]}  b6 {[%clk 0:01:39]} 28. b4 {[%clk 0:01:27]}  g5 {[%clk 0:01:39]} 29. a4 {[%clk 0:01:20]}  Re8 {[%clk 0:01:31]} 30. Re1 {[%clk 0:01:19]}  Rf8 {[%clk 0:01:25]} 31. g3 {[%clk 0:00:57]}  Qxh3 {[%clk 0:01:24]} 32. e6 {[%clk 0:00:55]}  Qf5 {[%clk 0:01:25]} 33. e7 {[%clk 0:00:50]}  Re8 {[%clk 0:01:25]} 34. a5 {[%clk 0:00:50]}  Kc7 {[%clk 0:01:24]} 35. Qa1 {[%clk 0:00:38]}  Kd6 {[%clk 0:01:01]} 36. axb6 {[%clk 0:00:24]}  axb6 {[%clk 0:01:02]} 37. Qa7 {[%clk 0:00:23]}  Qf6 {[%clk 0:00:55]} 38. Qxb6 {[%clk 0:00:15]}  Rxe7 {[%clk 0:00:55]} 39. Qb8+ {[%clk 0:00:12]}  Kd7 {[%clk 0:00:54]} 40. Qb7+ {[%clk 0:00:12]}  Kd6 {[%clk 0:00:41]} 41. Qb8+ {[%clk 0:00:12]}  Rc7 {[%clk 0:00:41]} 42. b5 {[%clk 0:00:11]}  cxb5 {[%clk 0:00:38]} 43. Qxb5 {[%clk 0:00:07]}  d4 {[%clk 0:00:29]} 44. Rd1 {[%clk 0:00:03]}  Qe5 {[%clk 0:00:28]} 45. Qb6+ {[%clk 0:00:03]}  Rc6 {[%clk 0:00:28]} 46. Qxd4+ {[%clk 0:00:02]}  Qxd4 {[%clk 0:00:28]} 47. Rxd4+ {[%clk 0:00:03]}  Ke5 {[%clk 0:00:28]} 48. Rd3 {[%clk 0:00:04]}  Kf5 {[%clk 0:00:29]} 49. Kg2 {[%clk 0:00:04]}  Kg4 {[%clk 0:00:29]} 50. Rd4+ {[%clk 0:00:04]}  Kh5 {[%clk 0:00:29]} 51. Rd3 {[%clk 0:00:05]}  Rc2 {[%clk 0:00:28]} 52. Re3 {[%clk 0:00:05]}  Ra2 {[%clk 0:00:28]} 53. Rd3 {[%clk 0:00:06]}  Ra4 {[%clk 0:00:28]} 54. Re3 {[%clk 0:00:06]}  Kg4 {[%clk 0:00:27]} 55. Rd3 {[%clk 0:00:06]}  h5 {[%clk 0:00:28]} 56. Re3 {[%clk 0:00:06]}  Rd4 {[%clk 0:00:27]} 57. Rc3 {[%clk 0:00:06]}  Kf5 {[%clk 0:00:27]} 58. Rf3+ {[%clk 0:00:06]}  Kg6 {[%clk 0:00:27]} 59. Re3 {[%clk 0:00:07]}  Rd6 {[%clk 0:00:27]} 60. Rf3 {[%clk 0:00:07]}  Re6 {[%clk 0:00:26]} 61. Rd3 {[%clk 0:00:07]}  Kf5 {[%clk 0:00:26]} 62. Rd5+ {[%clk 0:00:07]}  Kf6 {[%clk 0:00:22]} 63. Rd3 {[%clk 0:00:07]}  Re5 {[%clk 0:00:19]} 64. Rf3+ {[%clk 0:00:07]}  Ke6 {[%clk 0:00:19]} 65. Ra3 {[%clk 0:00:07]}  Kf5 {[%clk 0:00:19]} 66. Rb3 {[%clk 0:00:06]}  Ke4 {[%clk 0:00:19]} 67. Re3+ {[%clk 0:00:06]}  Kf5 {[%clk 0:00:19]} 68. Rf3+ {[%clk 0:00:06]}  Kg6 {[%clk 0:00:19]} 69. Ra3 {[%clk 0:00:07]}  g4 {[%clk 0:00:19]} 70. Rb3 {[%clk 0:00:06]}  Kg5 {[%clk 0:00:19]} 71. Rc3 {[%clk 0:00:06]}  Kf5 {[%clk 0:00:20]} 72. Rd3 {[%clk 0:00:06]}  Kg5 {[%clk 0:00:20]} 73. Rc3 {[%clk 0:00:07]}  Kf5 {[%clk 0:00:20]} 74. Rd3 {[%clk 0:00:07]}  Ke4 {[%clk 0:00:21]} 75. Re3+ {[%clk 0:00:07]}  Kd4 {[%clk 0:00:21]} 76. Ra3 {[%clk 0:00:08]}  Kc4 {[%clk 0:00:21]} 77. Ra4+ {[%clk 0:00:07]}  Kd3 {[%clk 0:00:21]} 78. Ra2 {[%clk 0:00:07]}  Rc5 {[%clk 0:00:18]} 79. Ra3+ {[%clk 0:00:07]}  Ke4 {[%clk 0:00:17]} 80. Ra4+ {[%clk 0:00:07]}  Kf5 {[%clk 0:00:17]} 81. Ra3 {[%clk 0:00:07]}  Kg5 {[%clk 0:00:18]} 82. Re3 {[%clk 0:00:07]}  Rf5 {[%clk 0:00:18]} 83. Re2 {[%clk 0:00:08]}  h4 {[%clk 0:00:19]} 84. gxh4+ {[%clk 0:00:08]}  Kxh4 {[%clk 0:00:19]} 85. Re3 {[%clk 0:00:09]}  Rf4 {[%clk 0:00:19]} 86. Rg3 {[%clk 0:00:09]}  Rf6 {[%clk 0:00:19]} 87. Re3 {[%clk 0:00:10]}  Ra6 {[%clk 0:00:18]} 88. Rg3 {[%clk 0:00:10]}  Ra2 {[%clk 0:00:18]} 89. Re3 {[%clk 0:00:11]}  Rd2 {[%clk 0:00:18]} 90. Rg3 {[%clk 0:00:11]}  Re2 {[%clk 0:00:18]} 91. Re3 {[%clk 0:00:10]}  Rd2 {[%clk 0:00:15]} 92. Rg3 {[%clk 0:00:10]}  Kg5 {[%clk 0:00:15]} 93. Re3 {[%clk 0:00:10]}  Kf4 {[%clk 0:00:16]} 94. Rg3 {[%clk 0:00:11]}  Re2 {[%clk 0:00:16]} 95. Re3 {[%clk 0:00:10]}  Rd2 {[%clk 0:00:09]} 96. Rg3 {[%clk 0:00:10]}  Re2 {[%clk 0:00:08]} 97. Re3 {[%clk 0:00:11]}  Rxe3 {[%clk 0:00:06]} 98. fxe3+ {[%clk 0:00:11]}  Kxe3 {[%clk 0:00:05]} 99. Kg3 {[%clk 0:00:12]}  Ke4 {[%clk 0:00:04]} 100. Kxg4 {[%clk 0:00:13]} 1/2-1/2


[Site "https://www.chess.com"]

[Event "Titled Tuesday Blitz February 14 Late 2023"]
[White "Papasimakopoulos, Alexandros"]
[Black "Prem, Pranav"]
[WhiteFideId "4244125"]
[BlackFideId "30901057"]
[WhiteElo "2401"]
[BlackElo "2061"]
[Result "1-0"]
[Round "08"]
[TimeControl "180+2"]
[Date "2023.02.14"]
[WhiteClock "0:00:50"]
[BlackClock "0:00:04"]

1. d4 {[%clk 0:03:00]}  d5 {[%clk 0:02:59]} 2. c4 {[%clk 0:02:59]}  e6 {[%clk 0:02:59]} 3. Nc3 {[%clk 0:02:58]}  Nf6 {[%clk 0:02:58]} 4. cxd5 {[%clk 0:02:59]}  exd5 {[%clk 0:02:57]} 5. Bg5 {[%clk 0:02:59]}  c6 {[%clk 0:02:54]} 6. e3 {[%clk 0:02:59]}  Be7 {[%clk 0:02:53]} 7. Bd3 {[%clk 0:02:59]}  Nbd7 {[%clk 0:02:46]} 8. Qc2 {[%clk 0:02:58]}  O-O {[%clk 0:02:45]} 9. Nf3 {[%clk 0:02:57]}  Re8 {[%clk 0:02:43]} 10. O-O {[%clk 0:02:57]}  Nf8 {[%clk 0:02:43]} 11. h3 {[%clk 0:02:56]}  Ne4 {[%clk 0:02:34]} 12. Bxe7 {[%clk 0:02:56]}  Qxe7 {[%clk 0:02:35]} 13. Bxe4 {[%clk 0:02:51]}  dxe4 {[%clk 0:02:34]} 14. Nd2 {[%clk 0:02:51]}  f5 {[%clk 0:02:30]} 15. Nc4 {[%clk 0:02:51]}  Be6 {[%clk 0:02:27]} 16. Ne2 {[%clk 0:02:49]}  Ng6 {[%clk 0:02:18]} 17. Rfd1 {[%clk 0:02:40]}  h5 {[%clk 0:02:14]} 18. Rac1 {[%clk 0:02:35]}  Rad8 {[%clk 0:02:08]} 19. a3 {[%clk 0:02:30]}  Qg5 {[%clk 0:01:57]} 20. Ne5 {[%clk 0:02:26]}  Nxe5 {[%clk 0:01:51]} 21. dxe5 {[%clk 0:02:26]}  Bd5 {[%clk 0:01:52]} 22. Nf4 {[%clk 0:02:18]}  Rxe5 {[%clk 0:01:48]} 23. Qc5 {[%clk 0:02:17]}  b6 {[%clk 0:01:47]} 24. Qc3 {[%clk 0:02:15]}  Re7 {[%clk 0:01:44]} 25. b4 {[%clk 0:02:12]}  b5 {[%clk 0:01:31]} 26. Qc5 {[%clk 0:02:05]}  Red7 {[%clk 0:01:28]} 27. Rd4 {[%clk 0:02:06]}  Qh6 {[%clk 0:01:20]} 28. Rcd1 {[%clk 0:02:03]}  Qd6 {[%clk 0:01:12]} 29. Nxd5 {[%clk 0:01:37]}  Qxc5 {[%clk 0:00:55]} 30. bxc5 {[%clk 0:01:38]}  Rxd5 {[%clk 0:00:49]} 31. Rxd5 {[%clk 0:01:38]}  cxd5 {[%clk 0:00:49]} 32. c6 {[%clk 0:01:37]}  a6 {[%clk 0:00:46]} 33. c7 {[%clk 0:01:36]}  Rc8 {[%clk 0:00:46]} 34. Rxd5 {[%clk 0:01:37]}  Rxc7 {[%clk 0:00:47]} 35. Rxf5 {[%clk 0:01:34]}  Rc3 {[%clk 0:00:39]} 36. a4 {[%clk 0:01:33]}  b4 {[%clk 0:00:23]} 37. Re5 {[%clk 0:01:30]}  Rc1+ {[%clk 0:00:18]} 38. Kh2 {[%clk 0:01:30]}  b3 {[%clk 0:00:19]} 39. Re8+ {[%clk 0:01:29]}  Kf7 {[%clk 0:00:17]} 40. Rb8 {[%clk 0:01:30]}  Rc3 {[%clk 0:00:16]} 41. Kg3 {[%clk 0:01:30]}  Rd3 {[%clk 0:00:16]} 42. Kf4 {[%clk 0:01:30]}  Rd2 {[%clk 0:00:15]} 43. Rxb3 {[%clk 0:01:23]}  Rxf2+ {[%clk 0:00:14]} 44. Kg3 {[%clk 0:01:23]}  Rf6 {[%clk 0:00:13]} 45. Rb4 {[%clk 0:01:23]}  Re6 {[%clk 0:00:14]} 46. Kf4 {[%clk 0:01:23]}  Rg6 {[%clk 0:00:15]} 47. g3 {[%clk 0:01:22]}  h4 {[%clk 0:00:10]} 48. g4 {[%clk 0:01:18]}  Rf6+ {[%clk 0:00:09]} 49. Kxe4 {[%clk 0:01:19]}  Rc6 {[%clk 0:00:08]} 50. Kf4 {[%clk 0:01:06]}  Rc5 {[%clk 0:00:07]} 51. Rb7+ {[%clk 0:01:05]}  Kf8 {[%clk 0:00:04]} 52. g5 {[%clk 0:01:05]}  Rc4+ {[%clk 0:00:04]} 53. e4 {[%clk 0:01:05]}  Rxa4 {[%clk 0:00:04]} 54. g6 {[%clk 0:01:03]}  Ra1 {[%clk 0:00:04]} 55. Kf5 {[%clk 0:01:02]}  Rf1+ {[%clk 0:00:04]} 56. Kg5 {[%clk 0:01:03]}  a5 {[%clk 0:00:04]} 57. Ra7 {[%clk 0:01:01]}  Re1 {[%clk 0:00:04]} 58. Kf5 {[%clk 0:00:59]}  Rf1+ {[%clk 0:00:05]} 59. Kg4 {[%clk 0:00:59]}  Re1 {[%clk 0:00:03]} 60. Kf4 {[%clk 0:00:57]}  Rf1+ {[%clk 0:00:04]} 61. Ke5 {[%clk 0:00:50]}  Ra1 {[%clk 0:00:04]} 62. Ke6 {[%clk 0:00:50]} 1-0


[Site "https://www.chess.com"]

[Event "Titled Tuesday Blitz February 14 Late 2023"]
[White "Han, Yichen"]
[Black "Reprintsev, Alexander"]
[WhiteFideId "1054430"]
[BlackFideId "14100541"]
[WhiteElo "2413"]
[BlackElo "2253"]
[Result "1-0"]
[Round "08"]
[TimeControl "180+2"]
[Date "2023.02.14"]
[WhiteClock "0:00:04"]
[BlackClock "0:00:09"]

1. Nc3 {[%clk 0:03:00]}  d5 {[%clk 0:02:55]} 2. e4 {[%clk 0:02:59]}  d4 {[%clk 0:02:55]} 3. Nce2 {[%clk 0:02:59]}  c5 {[%clk 0:02:55]} 4. d3 {[%clk 0:02:59]}  Nc6 {[%clk 0:02:55]} 5. f4 {[%clk 0:03:00]}  e5 {[%clk 0:02:55]} 6. Nf3 {[%clk 0:03:00]}  Bd6 {[%clk 0:02:55]} 7. g3 {[%clk 0:03:00]}  h6 {[%clk 0:02:49]} 8. Bg2 {[%clk 0:03:00]}  Bd7 {[%clk 0:02:45]} 9. O-O {[%clk 0:03:00]}  Nge7 {[%clk 0:02:30]} 10. h3 {[%clk 0:02:58]}  exf4 {[%clk 0:02:27]} 11. gxf4 {[%clk 0:02:52]}  Qc8 {[%clk 0:02:22]} 12. e5 {[%clk 0:02:51]}  Bc7 {[%clk 0:02:22]} 13. Kh2 {[%clk 0:02:49]}  Nf5 {[%clk 0:02:19]} 14. c3 {[%clk 0:02:48]}  O-O {[%clk 0:02:14]} 15. b4 {[%clk 0:02:38]}  cxb4 {[%clk 0:02:03]} 16. cxd4 {[%clk 0:02:37]}  Nce7 {[%clk 0:02:04]} 17. Qe1 {[%clk 0:02:29]}  a5 {[%clk 0:01:56]} 18. Ng3 {[%clk 0:02:18]}  Bc6 {[%clk 0:01:51]} 19. Ne4 {[%clk 0:02:11]}  Nd5 {[%clk 0:01:48]} 20. Bd2 {[%clk 0:02:10]}  b6 {[%clk 0:01:32]} 21. Rc1 {[%clk 0:02:08]}  Qb7 {[%clk 0:01:32]} 22. Nh4 {[%clk 0:02:07]}  Nxd4 {[%clk 0:01:28]} 23. Qf2 {[%clk 0:01:56]}  Ne6 {[%clk 0:01:16]} 24. Qg3 {[%clk 0:01:55]}  Kh8 {[%clk 0:01:15]} 25. Nf5 {[%clk 0:01:51]}  Rg8 {[%clk 0:01:10]} 26. Ned6 {[%clk 0:01:48]}  Bxd6 {[%clk 0:01:06]} 27. Nxd6 {[%clk 0:01:49]}  Qd7 {[%clk 0:01:06]} 28. Rxc6 {[%clk 0:01:41]}  Qxc6 {[%clk 0:00:57]} 29. Nxf7+ {[%clk 0:01:40]}  Kh7 {[%clk 0:00:57]} 30. Be4+ {[%clk 0:01:25]}  g6 {[%clk 0:00:56]} 31. Qh4 {[%clk 0:01:25]}  Kg7 {[%clk 0:00:53]} 32. f5 {[%clk 0:01:15]}  Kxf7 {[%clk 0:00:53]} 33. fxe6+ {[%clk 0:01:10]}  Ke8 {[%clk 0:00:53]} 34. Rf7 {[%clk 0:01:05]}  Qxe6 {[%clk 0:00:50]} 35. Bxd5 {[%clk 0:01:04]}  Qxe5+ {[%clk 0:00:50]} 36. Kg1 {[%clk 0:00:45]}  Rd8 {[%clk 0:00:43]} 37. Bb3 {[%clk 0:00:20]}  Rxd3 {[%clk 0:00:36]} 38. Rb7 {[%clk 0:00:15]}  Rxd2 {[%clk 0:00:22]} 39. Ba4+ {[%clk 0:00:03]}  Kf8 {[%clk 0:00:16]} 40. Qxh6+ {[%clk 0:00:04]}  Qg7 {[%clk 0:00:12]} 41. Rxg7 {[%clk 0:00:04]}  Rd1+ {[%clk 0:00:09]} 42. Bxd1 {[%clk 0:00:04]}  Rxg7 {[%clk 0:00:10]} 43. Bb3 {[%clk 0:00:04]}  g5 {[%clk 0:00:09]} 44. Qf6+ {[%clk 0:00:04]} 1-0


[Site "https://www.chess.com"]

[Event "Titled Tuesday Blitz February 14 Late 2023"]
[White "Novikov, Evgenij"]
[Black "Fiorito, Joaquin"]
[WhiteFideId "4125380"]
[BlackFideId "180173"]
[WhiteElo "2276"]
[BlackElo "2405"]
[Result "1/2-1/2"]
[Round "08"]
[TimeControl "180+2"]
[Date "2023.02.14"]
[WhiteClock "0:00:06"]
[BlackClock "0:00:37"]

1. e4 {[%clk 0:03:00]}  c6 {[%clk 0:03:00]} 2. c4 {[%clk 0:02:55]}  d5 {[%clk 0:03:00]} 3. exd5 {[%clk 0:02:56]}  cxd5 {[%clk 0:03:01]} 4. cxd5 {[%clk 0:02:56]}  Nf6 {[%clk 0:03:02]} 5. Qa4+ {[%clk 0:02:57]}  Bd7 {[%clk 0:02:58]} 6. Qb3 {[%clk 0:02:54]}  b6 {[%clk 0:02:55]} 7. Nc3 {[%clk 0:02:53]}  g6 {[%clk 0:02:54]} 8. Nf3 {[%clk 0:02:51]}  Bg7 {[%clk 0:02:55]} 9. g3 {[%clk 0:02:38]}  O-O {[%clk 0:02:52]} 10. Bg2 {[%clk 0:02:38]}  Na6 {[%clk 0:02:52]} 11. d4 {[%clk 0:02:35]}  Rc8 {[%clk 0:02:50]} 12. O-O {[%clk 0:02:34]}  Nc7 {[%clk 0:02:47]} 13. Ne5 {[%clk 0:02:31]}  Nfe8 {[%clk 0:02:29]} 14. Bg5 {[%clk 0:02:11]}  h6 {[%clk 0:02:23]} 15. Bf4 {[%clk 0:02:04]}  Nd6 {[%clk 0:02:20]} 16. Rad1 {[%clk 0:01:53]}  Nf5 {[%clk 0:02:16]} 17. Rfe1 {[%clk 0:01:37]}  b5 {[%clk 0:02:10]} 18. Ne4 {[%clk 0:01:26]}  Ne8 {[%clk 0:02:01]} 19. Nc5 {[%clk 0:01:19]}  Nxd4 {[%clk 0:01:56]} 20. Rxd4 {[%clk 0:01:08]}  Rxc5 {[%clk 0:01:56]} 21. Rde4 {[%clk 0:01:04]}  Nd6 {[%clk 0:01:50]} 22. Nxd7 {[%clk 0:00:52]}  Nxe4 {[%clk 0:01:50]} 23. Nxc5 {[%clk 0:00:49]}  Nxc5 {[%clk 0:01:49]} 24. Qxb5 {[%clk 0:00:49]}  Nd7 {[%clk 0:01:43]} 25. Qb4 {[%clk 0:00:42]}  g5 {[%clk 0:01:40]} 26. Be3 {[%clk 0:00:39]}  Ne5 {[%clk 0:01:36]} 27. Qe4 {[%clk 0:00:36]}  Qd7 {[%clk 0:01:31]} 28. Bd4 {[%clk 0:00:34]}  Ng6 {[%clk 0:01:29]} 29. Bxg7 {[%clk 0:00:33]}  Kxg7 {[%clk 0:01:30]} 30. h4 {[%clk 0:00:29]}  gxh4 {[%clk 0:01:27]} 31. gxh4 {[%clk 0:00:30]}  f5 {[%clk 0:01:19]} 32. Qd4+ {[%clk 0:00:29]}  Kh7 {[%clk 0:01:18]} 33. h5 {[%clk 0:00:27]}  Nh8 {[%clk 0:01:16]} 34. Re6 {[%clk 0:00:26]}  Nf7 {[%clk 0:01:12]} 35. Qf4 {[%clk 0:00:26]}  Ng5 {[%clk 0:01:07]} 36. Re5 {[%clk 0:00:20]}  e6 {[%clk 0:01:03]} 37. Kh2 {[%clk 0:00:14]}  Qf7 {[%clk 0:00:57]} 38. Bf3 {[%clk 0:00:12]}  Nxf3+ {[%clk 0:00:55]} 39. Qxf3 {[%clk 0:00:13]}  exd5 {[%clk 0:00:55]} 40. Rxd5 {[%clk 0:00:12]}  Qc7+ {[%clk 0:00:43]} 41. Kh3 {[%clk 0:00:09]}  Rf7 {[%clk 0:00:37]} 42. Qc3 {[%clk 0:00:08]}  Qe7 {[%clk 0:00:35]} 43. Qf3 {[%clk 0:00:05]}  Qb7 {[%clk 0:00:33]} 44. b3 {[%clk 0:00:04]}  Qc6 {[%clk 0:00:30]} 45. Rd3 {[%clk 0:00:03]}  Qf6 {[%clk 0:00:30]} 46. Rd5 {[%clk 0:00:02]}  Qe6 {[%clk 0:00:30]} 47. Rd4 {[%clk 0:00:02]}  f4+ {[%clk 0:00:30]} 48. Kh2 {[%clk 0:00:02]}  Qe5 {[%clk 0:00:31]} 49. Qe4+ {[%clk 0:00:01]}  Qxe4 {[%clk 0:00:31]} 50. Rxe4 {[%clk 0:00:02]}  Kg7 {[%clk 0:00:30]} 51. Kg2 {[%clk 0:00:03]}  Rf5 {[%clk 0:00:30]} 52. Kf3 {[%clk 0:00:03]}  Rxh5 {[%clk 0:00:31]} 53. Re7+ {[%clk 0:00:03]}  Kf6 {[%clk 0:00:31]} 54. Rxa7 {[%clk 0:00:04]}  Rh4 {[%clk 0:00:31]} 55. Ra6+ {[%clk 0:00:04]}  Ke5 {[%clk 0:00:31]} 56. Ra5+ {[%clk 0:00:05]}  Kf6 {[%clk 0:00:31]} 57. b4 {[%clk 0:00:05]}  Rh3+ {[%clk 0:00:30]} 58. Kxf4 {[%clk 0:00:05]}  Rh4+ {[%clk 0:00:31]} 59. Kg3 {[%clk 0:00:05]}  Rxb4 {[%clk 0:00:32]} 60. Ra6+ {[%clk 0:00:05]}  Kg5 {[%clk 0:00:32]} 61. f4+ {[%clk 0:00:04]}  Rxf4 {[%clk 0:00:29]} 62. Rxh6 {[%clk 0:00:02]}  Ra4 {[%clk 0:00:28]} 63. Rh2 {[%clk 0:00:01]}  Ra3+ {[%clk 0:00:29]} 64. Kg2 {[%clk 0:00:02]}  Kf4 {[%clk 0:00:30]} 65. Kh1 {[%clk 0:00:03]}  Kg3 {[%clk 0:00:30]} 66. Rg2+ {[%clk 0:00:03]}  Kf3 {[%clk 0:00:30]} 67. Kh2 {[%clk 0:00:03]}  Ra8 {[%clk 0:00:30]} 68. Rg3+ {[%clk 0:00:04]}  Kf2 {[%clk 0:00:31]} 69. Rg2+ {[%clk 0:00:04]}  Kf3 {[%clk 0:00:32]} 70. Rg3+ {[%clk 0:00:04]}  Kf4 {[%clk 0:00:32]} 71. Rg2 {[%clk 0:00:04]}  Rh8+ {[%clk 0:00:33]} 72. Kg1 {[%clk 0:00:04]}  Kf3 {[%clk 0:00:34]} 73. Rf2+ {[%clk 0:00:04]}  Ke3 {[%clk 0:00:35]} 74. Rg2 {[%clk 0:00:04]}  Rd8 {[%clk 0:00:35]} 75. Rf2 {[%clk 0:00:04]}  Rg8+ {[%clk 0:00:34]} 76. Kf1 {[%clk 0:00:05]}  Rc8 {[%clk 0:00:34]} 77. Re2+ {[%clk 0:00:05]}  Kd3 {[%clk 0:00:35]} 78. Kf2 {[%clk 0:00:05]}  Rf8+ {[%clk 0:00:35]} 79. Ke1 {[%clk 0:00:05]}  Rh8 {[%clk 0:00:36]} 80. Rd2+ {[%clk 0:00:05]}  Kc3 {[%clk 0:00:36]} 81. Rf2 {[%clk 0:00:05]}  Re8+ {[%clk 0:00:36]} 82. Re2 {[%clk 0:00:05]}  Rh8 {[%clk 0:00:36]} 83. Rf2 {[%clk 0:00:05]}  Rh1+ {[%clk 0:00:36]} 84. Ke2 {[%clk 0:00:05]}  Ra1 {[%clk 0:00:36]} 85. Ke3 {[%clk 0:00:05]}  Re1+ {[%clk 0:00:36]} 86. Kf3 {[%clk 0:00:05]}  Re8 {[%clk 0:00:35]} 87. Kg3 {[%clk 0:00:05]}  Rg8+ {[%clk 0:00:35]} 88. Kf3 {[%clk 0:00:04]}  Rf8+ {[%clk 0:00:36]} 89. Kg3 {[%clk 0:00:04]}  Rxf2 {[%clk 0:00:35]} 90. Kxf2 {[%clk 0:00:05]}  Kb4 {[%clk 0:00:36]} 91. Ke3 {[%clk 0:00:05]}  Ka3 {[%clk 0:00:36]} 92. Kd3 {[%clk 0:00:06]}  Kxa2 {[%clk 0:00:37]} 1/2-1/2


[Site "https://www.chess.com"]

[Event "Titled Tuesday Blitz February 14 Late 2023"]
[White "Kalogeris, Ioannis"]
[Black "benny_aizenberg"]
[WhiteFideId "4239563"]
[WhiteElo "2423"]
[BlackElo "2558"]
[Result "0-1"]
[Round "08"]
[TimeControl "180+2"]
[Date "2023.02.14"]
[WhiteClock "0:00:14"]
[BlackClock "0:00:07"]

1. e4 {[%clk 0:03:00]}  c6 {[%clk 0:02:59]} 2. d4 {[%clk 0:02:59]}  d5 {[%clk 0:02:59]} 3. e5 {[%clk 0:02:59]}  Bf5 {[%clk 0:02:58]} 4. Nd2 {[%clk 0:02:59]}  e6 {[%clk 0:02:56]} 5. Ngf3 {[%clk 0:02:59]}  Nd7 {[%clk 0:02:50]} 6. Be2 {[%clk 0:03:00]}  c5 {[%clk 0:02:50]} 7. c3 {[%clk 0:02:52]}  Ne7 {[%clk 0:02:50]} 8. Nb3 {[%clk 0:02:51]}  Nc6 {[%clk 0:02:49]} 9. O-O {[%clk 0:02:50]}  Be7 {[%clk 0:02:48]} 10. a4 {[%clk 0:02:45]}  O-O {[%clk 0:02:47]} 11. Be3 {[%clk 0:02:39]}  c4 {[%clk 0:02:29]} 12. Nbd2 {[%clk 0:02:33]}  a6 {[%clk 0:02:29]} 13. Ne1 {[%clk 0:02:32]}  b5 {[%clk 0:02:29]} 14. g4 {[%clk 0:02:29]}  Bg6 {[%clk 0:02:27]} 15. f4 {[%clk 0:02:29]}  f5 {[%clk 0:02:24]} 16. exf6 {[%clk 0:02:28]}  Nxf6 {[%clk 0:02:12]} 17. g5 {[%clk 0:02:13]}  Ne4 {[%clk 0:02:11]} 18. Bg4 {[%clk 0:02:07]}  Bf5 {[%clk 0:02:10]} 19. Nxe4 {[%clk 0:02:06]}  dxe4 {[%clk 0:02:07]} 20. axb5 {[%clk 0:01:46]}  axb5 {[%clk 0:02:06]} 21. Rxa8 {[%clk 0:01:46]}  Qxa8 {[%clk 0:02:06]} 22. d5 {[%clk 0:01:47]}  Rd8 {[%clk 0:02:02]} 23. Bxf5 {[%clk 0:01:17]}  exf5 {[%clk 0:02:02]} 24. Bb6 {[%clk 0:01:15]}  Rd7 {[%clk 0:01:39]} 25. Nc2 {[%clk 0:01:15]}  Qa6 {[%clk 0:01:21]} 26. Bf2 {[%clk 0:01:11]}  Na5 {[%clk 0:01:21]} 27. Ne3 {[%clk 0:01:08]}  g6 {[%clk 0:01:12]} 28. Qa1 {[%clk 0:01:07]}  Bc5 {[%clk 0:01:07]} 29. Rd1 {[%clk 0:01:01]}  Qb6 {[%clk 0:01:06]} 30. Re1 {[%clk 0:00:58]}  Ra7 {[%clk 0:01:03]} 31. Qd1 {[%clk 0:00:54]}  Qd6 {[%clk 0:00:58]} 32. Ng2 {[%clk 0:00:46]}  Bxf2+ {[%clk 0:00:50]} 33. Kxf2 {[%clk 0:00:47]}  Nb3 {[%clk 0:00:50]} 34. Kg3 {[%clk 0:00:42]}  Ra1 {[%clk 0:00:45]} 35. Qe2 {[%clk 0:00:39]}  Rxe1 {[%clk 0:00:44]} 36. Qxe1 {[%clk 0:00:40]}  Qxd5 {[%clk 0:00:44]} 37. Ne3 {[%clk 0:00:38]}  Qd3 {[%clk 0:00:44]} 38. Kf2 {[%clk 0:00:35]}  Nc5 {[%clk 0:00:33]} 39. Qc1 {[%clk 0:00:32]}  Ne6 {[%clk 0:00:30]} 40. Ng2 {[%clk 0:00:29]}  Qd7 {[%clk 0:00:16]} 41. Qa1 {[%clk 0:00:28]}  Nc5 {[%clk 0:00:14]} 42. Qa8+ {[%clk 0:00:27]}  Kg7 {[%clk 0:00:14]} 43. h4 {[%clk 0:00:20]}  Nd3+ {[%clk 0:00:13]} 44. Kg3 {[%clk 0:00:20]}  Nxb2 {[%clk 0:00:13]} 45. Qb8 {[%clk 0:00:21]}  Nd3 {[%clk 0:00:10]} 46. h5 {[%clk 0:00:21]}  gxh5 {[%clk 0:00:10]} 47. Nh4 {[%clk 0:00:20]}  e3 {[%clk 0:00:10]} 48. Kf3 {[%clk 0:00:17]}  Qd5+ {[%clk 0:00:09]} 49. Ke2 {[%clk 0:00:16]}  Nxf4+ {[%clk 0:00:05]} 50. Qxf4 {[%clk 0:00:15]}  Qd2+ {[%clk 0:00:05]} 51. Kf1 {[%clk 0:00:14]}  e2+ {[%clk 0:00:06]} 52. Kg2 {[%clk 0:00:14]}  Qxf4 {[%clk 0:00:07]} 0-1


[Site "https://www.chess.com"]